[Event "*** Titled Tuesday Blitz"]
[Site "Chess.com"]
[Date "2020.11.10"]
[Round "7"]
[White "Zkid"]
[Black "Oleksandr_Bortnyk"]
[Result "1-0"]
[WhiteElo "2786"]
[BlackElo "2901"]
[TimeControl "180+1"]
[EndTime "11:22:28 PST"]
[Termination "Zkid won on time"]

1. e4 {[%clk 0:03:00.9]} 1... c5 {[%clk 0:02:58.6]} 2. Nf3 {[%clk 0:03:00.5]}
2... d6 {[%clk 0:02:58.6]} 3. d4 {[%clk 0:03:01.1]} 3... cxd4 {[%clk 0:02:59.5]}
4. Nxd4 {[%clk 0:03:01.7]} 4... Nf6 {[%clk 0:03:00.4]} 5. f3 {[%clk 0:03:02.1]}
5... g6 {[%clk 0:03:00.2]} 6. c4 {[%clk 0:03:01.9]} 6... Bg7 {[%clk 0:02:51.7]}
7. Nc3 {[%clk 0:03:02]} 7... Nc6 {[%clk 0:02:51]} 8. Be3 {[%clk 0:02:57.8]} 8...
O-O {[%clk 0:02:51.3]} 9. Qd2 {[%clk 0:02:55.6]} 9... Nxd4 {[%clk 0:02:49.4]}
10. Bxd4 {[%clk 0:02:55.7]} 10... Be6 {[%clk 0:02:50.2]} 11. Be2 {[%clk
0:02:53.3]} 11... Rc8 {[%clk 0:02:48.6]} 12. b3 {[%clk 0:02:47.1]} 12... a6
{[%clk 0:02:47]} 13. O-O {[%clk 0:02:42.3]} 13... Nd7 {[%clk 0:02:29.5]} 14.
Rac1 {[%clk 0:02:38.8]} 14... Bxd4+ {[%clk 0:02:27.1]} 15. Qxd4 {[%clk
0:02:39.7]} 15... Qb6 {[%clk 0:02:27.6]} 16. Qxb6 {[%clk 0:02:35.2]} 16... Nxb6
{[%clk 0:02:28.5]} 17. Nd5 {[%clk 0:02:35.4]} 17... Bxd5 {[%clk 0:02:07.5]} 18.
exd5 {[%clk 0:02:28.2]} 18... a5 {[%clk 0:02:06.9]} 19. Rfe1 {[%clk 0:02:23.9]}
19... Rc7 {[%clk 0:02:04.1]} 20. f4 {[%clk 0:02:20.3]} 20... Nd7 {[%clk
0:02:01.3]} 21. a3 {[%clk 0:02:13.8]} 21... Ra8 {[%clk 0:01:54.7]} 22. Rc3
{[%clk 0:02:09]} 22... b5 {[%clk 0:01:50.8]} 23. Re3 {[%clk 0:01:50.5]} 23...
Nb6 {[%clk 0:01:00.6]} 24. cxb5 {[%clk 0:01:29.3]} 24... Kf8 {[%clk 0:00:49.1]}
25. a4 {[%clk 0:01:03]} 25... Raa7 {[%clk 0:00:43.8]} 26. Bf3 {[%clk 0:00:38.4]}
26... Rc2 {[%clk 0:00:43.9]} 27. h4 {[%clk 0:00:36.5]} 27... Rac7 {[%clk
0:00:33.6]} 28. b4 {[%clk 0:00:32.2]} 28... axb4 {[%clk 0:00:27]} 29. a5 {[%clk
0:00:32.3]} 29... Nc4 {[%clk 0:00:27.6]} 30. b6 {[%clk 0:00:32.7]} 30... Rd7
{[%clk 0:00:28.1]} 31. Rxe7 {[%clk 0:00:27.5]} 31... Rxe7 {[%clk 0:00:16.5]} 32.
Rxe7 {[%clk 0:00:28.4]} 32... b3 {[%clk 0:00:12.1]} 33. b7 {[%clk 0:00:27.1]}
33... Kxe7 {[%clk 0:00:12]} 34. b8=Q {[%clk 0:00:26.2]} 34... b2 {[%clk
0:00:12.9]} 35. Be4 {[%clk 0:00:22]} 35... Rc1+ {[%clk 0:00:11]} 36. Kf2 {[%clk
0:00:20.4]} 36... Kf6 {[%clk 0:00:04.6]} 37. Qh8+ {[%clk 0:00:16.3]} 37... Ke7
{[%clk 0:00:04.4]} 38. a6 {[%clk 0:00:16.3]} 38... Ra1 {[%clk 0:00:02.6]} 39.
Qb8 {[%clk 0:00:14.5]} 39... Ra2 {[%clk 0:00:01.4]} 40. Bb1 {[%clk 0:00:13.6]}
40... Ra1 {[%clk 0:00:01.3]} 41. a7 {[%clk 0:00:13.6]} 41... Rxb1 {[%clk
0:00:01.8]} 42. a8=Q {[%clk 0:00:14]} 42... Kf6 {[%clk 0:00:02.5]} 43. Qh8+
{[%clk 0:00:12.9]} 43... Kf5 {[%clk 0:00:02.9]} 44. Qac8+ {[%clk 0:00:13]} 44...
Ke4 {[%clk 0:00:01.4]} 45. Qxc4+ {[%clk 0:00:12.5]} 45... Kf5 {[%clk 0:00:02]}
46. Qd3+ {[%clk 0:00:11.1]} 1-0

[Event "*** Titled Tuesday Blitz"]
[Site "Chess.com"]
[Date "2020.11.10"]
[Round "7"]
[White "gumimis"]
[Black "Keures"]
[Result "0-1"]
[WhiteElo "2202"]
[BlackElo "2342"]
[TimeControl "180+1"]
[EndTime "11:22:34 PST"]
[Termination "Keures won on time"]

1. e4 {[%clk 0:02:56.1]} 1... e6 {[%clk 0:02:59.7]} 2. d4 {[%clk 0:02:55.7]}
2... d5 {[%clk 0:03:00.6]} 3. Nc3 {[%clk 0:02:54.9]} 3... Nf6 {[%clk 0:03:00.2]}
4. e5 {[%clk 0:02:53.1]} 4... Ne4 {[%clk 0:02:59.9]} 5. Nce2 {[%clk 0:02:50.7]}
5... f6 {[%clk 0:02:59]} 6. Nf3 {[%clk 0:02:48.7]} 6... c5 {[%clk 0:02:56.8]} 7.
c3 {[%clk 0:02:46.2]} 7... Nc6 {[%clk 0:02:55.2]} 8. Nf4 {[%clk 0:02:41.1]} 8...
cxd4 {[%clk 0:02:49.4]} 9. exf6 {[%clk 0:02:13.7]} 9... gxf6 {[%clk 0:02:43.8]}
10. cxd4 {[%clk 0:02:05.5]} 10... Bb4+ {[%clk 0:02:42.7]} 11. Bd2 {[%clk
0:02:04.8]} 11... Qa5 {[%clk 0:02:35.7]} 12. Bd3 {[%clk 0:01:52.2]} 12... Bxd2+
{[%clk 0:02:30.5]} 13. Nxd2 {[%clk 0:01:51.3]} 13... Qxd2+ {[%clk 0:02:29.7]}
14. Qxd2 {[%clk 0:01:51.2]} 14... Nxd2 {[%clk 0:02:30.6]} 15. Kxd2 {[%clk
0:01:52]} 15... Nxd4 {[%clk 0:02:31.2]} 16. Rhe1 {[%clk 0:01:50.6]} 16... Kf7
{[%clk 0:02:25.5]} 17. Rac1 {[%clk 0:01:42.5]} 17... Nc6 {[%clk 0:02:22.7]} 18.
b4 {[%clk 0:01:35.5]} 18... a6 {[%clk 0:02:16.9]} 19. a4 {[%clk 0:01:35]} 19...
Bd7 {[%clk 0:01:59.5]} 20. b5 {[%clk 0:01:13.8]} 20... axb5 {[%clk 0:01:54.5]}
21. axb5 {[%clk 0:01:14.6]} 21... Ne5 {[%clk 0:01:45.5]} 22. Rc7 {[%clk
0:01:08.1]} 22... Ke7 {[%clk 0:01:18.6]} 23. Rxb7 {[%clk 0:00:54.8]} 23... Rhb8
{[%clk 0:01:11.1]} 24. Rxb8 {[%clk 0:00:51.3]} 24... Rxb8 {[%clk 0:01:12]} 25.
Nxd5+ {[%clk 0:00:40.7]} 25... exd5 {[%clk 0:01:10.5]} 26. f4 {[%clk 0:00:40.8]}
26... Kd6 {[%clk 0:01:07.6]} 27. fxe5+ {[%clk 0:00:39.2]} 27... fxe5 {[%clk
0:01:08.4]} 28. Bxh7 {[%clk 0:00:36.2]} 28... Rh8 {[%clk 0:01:07.8]} 29. Bd3
{[%clk 0:00:32.2]} 29... Rxh2 {[%clk 0:01:07.1]} 30. Rg1 {[%clk 0:00:32.1]}
30... Rh4 {[%clk 0:00:57.7]} 31. Be2 {[%clk 0:00:27.7]} 31... Rb4 {[%clk
0:00:51.9]} 32. g4 {[%clk 0:00:27.4]} 32... Bxb5 {[%clk 0:00:51.8]} 33. Bxb5
{[%clk 0:00:24.1]} 33... Rxb5 {[%clk 0:00:52.7]} 34. g5 {[%clk 0:00:23.3]} 34...
Rb7 {[%clk 0:00:52.6]} 35. Ra1 {[%clk 0:00:14.4]} 35... Rg7 {[%clk 0:00:50.1]}
36. Ra6+ {[%clk 0:00:14.1]} 36... Kc5 {[%clk 0:00:50.2]} 37. g6 {[%clk 0:00:10]}
37... e4 {[%clk 0:00:48.8]} 38. Ke3 {[%clk 0:00:08.8]} 38... Re7 {[%clk
0:00:46.3]} 39. Ra5+ {[%clk 0:00:07.2]} 39... Kd6 {[%clk 0:00:46.4]} 40. Ra6+
{[%clk 0:00:04.9]} 40... Ke5 {[%clk 0:00:46]} 41. Rb6 {[%clk 0:00:04.8]} 41...
d4+ {[%clk 0:00:45.3]} 42. Ke2 {[%clk 0:00:04.6]} 42... Ra7 {[%clk 0:00:44.4]}
43. Rb5+ {[%clk 0:00:04.5]} 43... Kf4 {[%clk 0:00:40.5]} 44. Rd5 {[%clk
0:00:01.1]} 44... d3+ {[%clk 0:00:40.2]} 45. Kd2 {[%clk 0:00:01.2]} 45... Ra2+
{[%clk 0:00:39.5]} 46. Kc1 {[%clk 0:00:01.6]} 46... Rg2 {[%clk 0:00:39.2]} 47.
Rd6 {[%clk 0:00:01.4]} 47... Ke3 {[%clk 0:00:39.3]} 0-1

[Event "*** Titled Tuesday Blitz"]
[Site "Chess.com"]
[Date "2020.11.10"]
[Round "7"]
[White "bazar-wokzal"]
[Black "Anaj14"]
[Result "1-0"]
[WhiteElo "2503"]
[BlackElo "2348"]
[TimeControl "180+1"]
[EndTime "11:22:35 PST"]
[Termination "bazar-wokzal won on time"]

1. e4 {[%clk 0:02:55.9]} 1... c5 {[%clk 0:02:59.3]} 2. c3 {[%clk 0:02:53]} 2...
d5 {[%clk 0:02:57.6]} 3. exd5 {[%clk 0:02:52.9]} 3... Qxd5 {[%clk 0:02:58.3]} 4.
d4 {[%clk 0:02:53.4]} 4... Nf6 {[%clk 0:02:58.7]} 5. Nf3 {[%clk 0:02:53.2]} 5...
e6 {[%clk 0:02:59.2]} 6. a3 {[%clk 0:02:51.9]} 6... Be7 {[%clk 0:02:56.2]} 7.
Be3 {[%clk 0:02:51.8]} 7... cxd4 {[%clk 0:02:52.4]} 8. cxd4 {[%clk 0:02:52]}
8... Nc6 {[%clk 0:02:48.2]} 9. Nc3 {[%clk 0:02:52.5]} 9... Qa5 {[%clk
0:02:43.3]} 10. b4 {[%clk 0:02:46.7]} 10... Qc7 {[%clk 0:02:39.6]} 11. Rc1
{[%clk 0:02:45.5]} 11... a6 {[%clk 0:02:30.6]} 12. Qc2 {[%clk 0:02:44.6]} 12...
O-O {[%clk 0:02:20.3]} 13. Bd3 {[%clk 0:02:44.7]} 13... h6 {[%clk 0:02:14]} 14.
O-O {[%clk 0:02:44]} 14... Rd8 {[%clk 0:02:14]} 15. Qd2 {[%clk 0:02:42]} 15...
Bf8 {[%clk 0:02:09]} 16. Rfd1 {[%clk 0:02:38.6]} 16... Bd7 {[%clk 0:01:58.4]}
17. Bf4 {[%clk 0:02:35.3]} 17... Qb6 {[%clk 0:01:47.3]} 18. Na4 {[%clk
0:02:30.1]} 18... Qa7 {[%clk 0:01:46.2]} 19. Bc7 {[%clk 0:02:23.3]} 19... Rdc8
{[%clk 0:01:37]} 20. Bb6 {[%clk 0:02:06.3]} 20... Qb8 {[%clk 0:01:37]} 21. Nc5
{[%clk 0:02:05.4]} 21... Be8 {[%clk 0:01:32.9]} 22. Ne4 {[%clk 0:01:44.9]} 22...
Nd7 {[%clk 0:01:22]} 23. Bc5 {[%clk 0:01:42.2]} 23... Nxc5 {[%clk 0:01:21.9]}
24. dxc5 {[%clk 0:01:42.2]} 24... Ne5 {[%clk 0:01:15.4]} 25. Nxe5 {[%clk
0:01:36.6]} 25... Qxe5 {[%clk 0:01:15]} 26. Bb1 {[%clk 0:01:33.2]} 26... Ba4
{[%clk 0:01:11.9]} 27. Re1 {[%clk 0:01:31]} 27... Rd8 {[%clk 0:01:10.8]} 28. Qe3
{[%clk 0:01:26.4]} 28... Bc6 {[%clk 0:01:07.9]} 29. f4 {[%clk 0:01:22.4]} 29...
Qd4 {[%clk 0:01:04.4]} 30. Kf2 {[%clk 0:01:19.5]} 30... Qxe3+ {[%clk 0:01:00.9]}
31. Kxe3 {[%clk 0:01:19.5]} 31... Rd7 {[%clk 0:01:00.6]} 32. Red1 {[%clk
0:01:17.4]} 32... Rad8 {[%clk 0:01:00.8]} 33. Bc2 {[%clk 0:01:11.9]} 33... f5
{[%clk 0:00:59]} 34. Nc3 {[%clk 0:00:56.2]} 34... Bxg2 {[%clk 0:00:51.5]} 35.
Bb3 {[%clk 0:00:54.6]} 35... Kf7 {[%clk 0:00:51.1]} 36. Rxd7+ {[%clk 0:00:48.7]}
36... Rxd7 {[%clk 0:00:51.1]} 37. h4 {[%clk 0:00:43.4]} 37... Be7 {[%clk
0:00:47.8]} 38. h5 {[%clk 0:00:37.1]} 38... Bf6 {[%clk 0:00:47.8]} 39. Ne2
{[%clk 0:00:33.3]} 39... Be4 {[%clk 0:00:44.8]} 40. Bc4 {[%clk 0:00:31.6]} 40...
Ke7 {[%clk 0:00:34.9]} 41. Rg1 {[%clk 0:00:28.2]} 41... Bb2 {[%clk 0:00:30.9]}
42. a4 {[%clk 0:00:23.4]} 42... Kf6 {[%clk 0:00:28.5]} 43. Rg6+ {[%clk
0:00:21.6]} 43... Kf7 {[%clk 0:00:21.6]} 44. Bxe6+ {[%clk 0:00:20.9]} 44... Ke7
{[%clk 0:00:22.1]} 45. Bxd7 {[%clk 0:00:20.7]} 45... Kxd7 {[%clk 0:00:22.7]} 46.
Nd4 {[%clk 0:00:19.9]} 1-0

[Event "*** Titled Tuesday Blitz"]
[Site "Chess.com"]
[Date "2020.11.10"]
[Round "7"]
[White "Skat2704"]
[Black "ZverevLev"]
[Result "1-0"]
[WhiteElo "2416"]
[BlackElo "2263"]
[TimeControl "180+1"]
[EndTime "11:22:37 PST"]
[Termination "Skat2704 won on time"]

1. d4 {[%clk 0:03:00.1]} 1... Nf6 {[%clk 0:02:59.1]} 2. c4 {[%clk 0:02:59.8]}
2... e6 {[%clk 0:02:57.2]} 3. g3 {[%clk 0:02:59.3]} 3... d5 {[%clk 0:02:56]} 4.
Nf3 {[%clk 0:02:58.7]} 4... dxc4 {[%clk 0:02:53.3]} 5. Bg2 {[%clk 0:02:57.5]}
5... Nc6 {[%clk 0:02:49.8]} 6. Qa4 {[%clk 0:02:56.8]} 6... Be7 {[%clk
0:02:43.9]} 7. Qxc4 {[%clk 0:02:49.6]} 7... O-O {[%clk 0:02:34.6]} 8. O-O {[%clk
0:02:47.5]} 8... Qd5 {[%clk 0:02:28.8]} 9. Qa4 {[%clk 0:02:33.9]} 9... Qa5
{[%clk 0:02:21.5]} 10. Qc2 {[%clk 0:02:22.5]} 10... Rd8 {[%clk 0:02:13.6]} 11.
Bd2 {[%clk 0:02:18]} 11... Bb4 {[%clk 0:02:08.8]} 12. e3 {[%clk 0:02:14.6]}
12... Bxd2 {[%clk 0:01:33.4]} 13. Nbxd2 {[%clk 0:02:13.1]} 13... Nb4 {[%clk
0:01:32.1]} 14. Qb3 {[%clk 0:02:10.8]} 14... Nc6 {[%clk 0:00:57.1]} 15. Nc4
{[%clk 0:02:03.7]} 15... Qh5 {[%clk 0:00:55]} 16. Nfe5 {[%clk 0:01:55]} 16...
Nxe5 {[%clk 0:00:51.1]} 17. Nxe5 {[%clk 0:01:54.4]} 17... Ng4 {[%clk 0:00:47.8]}
18. Nf3 {[%clk 0:01:39.6]} 18... c6 {[%clk 0:00:23.8]} 19. h3 {[%clk 0:01:37.9]}
19... Nf6 {[%clk 0:00:13.1]} 20. Ne5 {[%clk 0:01:33.9]} 20... Nd7 {[%clk
0:00:12.2]} 21. Nd3 {[%clk 0:01:21.8]} 21... Rb8 {[%clk 0:00:09.6]} 22. Nf4
{[%clk 0:01:20.4]} 22... Qa5 {[%clk 0:00:08.6]} 23. Rac1 {[%clk 0:01:16.3]}
23... e5 {[%clk 0:00:08.5]} 24. Ne2 {[%clk 0:01:03.6]} 24... exd4 {[%clk
0:00:06]} 25. Nxd4 {[%clk 0:01:03.3]} 25... Ne5 {[%clk 0:00:06.1]} 26. Qc2
{[%clk 0:00:56.6]} 26... Bd7 {[%clk 0:00:05]} 27. a3 {[%clk 0:00:53.3]} 27...
Qc7 {[%clk 0:00:04.7]} 28. f4 {[%clk 0:00:51.5]} 28... Ng6 {[%clk 0:00:03.5]}
29. Kh2 {[%clk 0:00:47.8]} 29... Ne7 {[%clk 0:00:03.4]} 30. e4 {[%clk
0:00:46.2]} 30... Qd6 {[%clk 0:00:03.4]} 31. Rfd1 {[%clk 0:00:45.2]} 31... Qg6
{[%clk 0:00:03.6]} 32. e5 {[%clk 0:00:41.8]} 32... Qh6 {[%clk 0:00:02]} 33. Nf3
{[%clk 0:00:36.3]} 33... Nf5 {[%clk 0:00:01.5]} 34. Rd3 {[%clk 0:00:30.2]} 34...
Ne7 {[%clk 0:00:01.9]} 35. Qd2 {[%clk 0:00:29]} 35... Nd5 {[%clk 0:00:01.6]} 36.
Rd1 {[%clk 0:00:27.4]} 36... Be6 {[%clk 0:00:01.6]} 37. Nd4 {[%clk 0:00:23.2]}
37... Rd7 {[%clk 0:00:02.5]} 38. f5 {[%clk 0:00:20.8]} 38... Bxf5 {[%clk
0:00:01.5]} 39. Nxf5 {[%clk 0:00:19.3]} 39... Qxd2 {[%clk 0:00:02.4]} 40. R1xd2
{[%clk 0:00:18.9]} 40... Rbd8 {[%clk 0:00:02.7]} 41. Nd6 {[%clk 0:00:17.1]} 1-0

[Event "*** Titled Tuesday Blitz"]
[Site "Chess.com"]
[Date "2020.11.10"]
[Round "7"]
[White "picturesquecheck"]
[Black "Matols"]
[Result "0-1"]
[WhiteElo "2097"]
[BlackElo "2251"]
[TimeControl "180+1"]
[EndTime "11:22:37 PST"]
[Termination "Matols won by resignation"]

1. e4 {[%clk 0:03:00.9]} 1... e6 {[%clk 0:02:59.8]} 2. d4 {[%clk 0:03:00.1]}
2... d5 {[%clk 0:03:00]} 3. Nd2 {[%clk 0:03:01]} 3... c5 {[%clk 0:02:59.9]} 4.
exd5 {[%clk 0:03:00.4]} 4... Qxd5 {[%clk 0:02:59.9]} 5. Ngf3 {[%clk 0:03:01.3]}
5... cxd4 {[%clk 0:03:00]} 6. Bc4 {[%clk 0:03:01.8]} 6... Qd6 {[%clk 0:03:00.1]}
7. O-O {[%clk 0:03:02.7]} 7... Nf6 {[%clk 0:02:59.7]} 8. Nb3 {[%clk 0:03:03.1]}
8... Nc6 {[%clk 0:02:59.9]} 9. Nfxd4 {[%clk 0:03:03.5]} 9... Nxd4 {[%clk
0:03:00]} 10. Nxd4 {[%clk 0:03:04.4]} 10... a6 {[%clk 0:03:00.1]} 11. Re1 {[%clk
0:02:58.4]} 11... Qc7 {[%clk 0:02:59]} 12. Qe2 {[%clk 0:02:57.7]} 12... Bd7
{[%clk 0:02:47.4]} 13. Bg5 {[%clk 0:02:55]} 13... O-O-O {[%clk 0:02:44.3]} 14.
Rad1 {[%clk 0:02:47.9]} 14... Bd6 {[%clk 0:02:42.2]} 15. h3 {[%clk 0:02:42.8]}
15... h6 {[%clk 0:02:36.8]} 16. Be3 {[%clk 0:02:36.7]} 16... Kb8 {[%clk
0:01:56.2]} 17. Bb3 {[%clk 0:02:30.1]} 17... g5 {[%clk 0:01:46.9]} 18. a4 {[%clk
0:02:27.7]} 18... Ne4 {[%clk 0:01:30.1]} 19. Qf3 {[%clk 0:01:49.4]} 19... f5
{[%clk 0:01:27.9]} 20. Bxe6 {[%clk 0:01:46.1]} 20... g4 {[%clk 0:00:42.8]} 21.
hxg4 {[%clk 0:01:43]} 21... Ng5 {[%clk 0:00:41.1]} 22. Bxg5 {[%clk 0:01:28.2]}
22... hxg5 {[%clk 0:00:40.7]} 23. Bxd7 {[%clk 0:01:27.5]} 23... Rxd7 {[%clk
0:00:35]} 24. Qc3 {[%clk 0:00:56.6]} 24... Bc5 {[%clk 0:00:26.8]} 25. g3 {[%clk
0:00:45.7]} 25... Rdh7 {[%clk 0:00:23]} 26. Kf1 {[%clk 0:00:30.5]} 26... Rh1+
{[%clk 0:00:21.2]} 27. Ke2 {[%clk 0:00:30.3]} 27... Re8+ {[%clk 0:00:17.4]} 28.
Kd2 {[%clk 0:00:28.7]} 28... Rhxe1 {[%clk 0:00:15.9]} 29. Rxe1 {[%clk
0:00:26.6]} 29... Rd8 {[%clk 0:00:16.1]} 30. Kc1 {[%clk 0:00:19]} 30... Bxd4
{[%clk 0:00:15.4]} 31. Qxc7+ {[%clk 0:00:18.6]} 31... Kxc7 {[%clk 0:00:15.2]}
32. gxf5 {[%clk 0:00:19.5]} 32... Bxf2 {[%clk 0:00:15.2]} 33. Re7+ {[%clk
0:00:19.4]} 33... Kc6 {[%clk 0:00:14.3]} 34. f6 {[%clk 0:00:18.8]} 34... Bxg3
{[%clk 0:00:12.4]} 35. f7 {[%clk 0:00:17.1]} 35... Rf8 {[%clk 0:00:12.2]} 36.
Kb1 {[%clk 0:00:16.6]} 36... Bd6 {[%clk 0:00:11.8]} 37. Re6 {[%clk 0:00:14]}
37... Rxf7 {[%clk 0:00:11.6]} 38. Rg6 {[%clk 0:00:14]} 38... Rf5 {[%clk
0:00:11.4]} 39. b4 {[%clk 0:00:14.2]} 39... Kd5 {[%clk 0:00:10.8]} 40. Kb2
{[%clk 0:00:14.1]} 40... Bxb4 {[%clk 0:00:10.3]} 41. Kb3 {[%clk 0:00:13.5]}
41... Bc5 {[%clk 0:00:10.4]} 42. c4+ {[%clk 0:00:12.6]} 42... Kd4 {[%clk
0:00:09.8]} 43. Rg7 {[%clk 0:00:12.4]} 43... Rf3+ {[%clk 0:00:09.2]} 44. Kb2
{[%clk 0:00:11.8]} 44... Rf5 {[%clk 0:00:08]} 45. Rxb7 {[%clk 0:00:11.2]} 45...
Kxc4 {[%clk 0:00:08.1]} 46. Rg7 {[%clk 0:00:08.6]} 46... Rf2+ {[%clk 0:00:07.7]}
0-1

[Event "*** Titled Tuesday Blitz"]
[Site "Chess.com"]
[Date "2020.11.10"]
[Round "7"]
[White "IngOscarArdila"]
[Black "DinaBelenkaya"]
[Result "0-1"]
[WhiteElo "2134"]
[BlackElo "2323"]
[TimeControl "180+1"]
[EndTime "11:22:40 PST"]
[Termination "DinaBelenkaya won by resignation"]

1. d4 {[%clk 0:03:00.9]} 1... d5 {[%clk 0:02:58.5]} 2. c4 {[%clk 0:02:57.1]}
2... dxc4 {[%clk 0:02:59.4]} 3. Qa4+ {[%clk 0:02:56.4]} 3... Nd7 {[%clk
0:02:58]} 4. Qxc4 {[%clk 0:02:56.4]} 4... a6 {[%clk 0:02:57.4]} 5. Nf3 {[%clk
0:02:55.5]} 5... Ngf6 {[%clk 0:02:57.5]} 6. Nc3 {[%clk 0:02:54.5]} 6... Nb6
{[%clk 0:02:57.4]} 7. Qb3 {[%clk 0:02:54.3]} 7... Bf5 {[%clk 0:02:55.5]} 8. Bf4
{[%clk 0:02:51.6]} 8... e6 {[%clk 0:02:55.3]} 9. e3 {[%clk 0:02:49.9]} 9... Bd6
{[%clk 0:02:51.1]} 10. Bg5 {[%clk 0:02:47.2]} 10... Be7 {[%clk 0:02:49]} 11. Be2
{[%clk 0:02:46.2]} 11... h6 {[%clk 0:02:48.3]} 12. Bh4 {[%clk 0:02:45.5]} 12...
Ne4 {[%clk 0:02:46.2]} 13. Bxe7 {[%clk 0:02:40]} 13... Qxe7 {[%clk 0:02:47.1]}
14. O-O {[%clk 0:02:37]} 14... O-O {[%clk 0:02:44]} 15. Rfd1 {[%clk 0:02:27.1]}
15... Rfd8 {[%clk 0:02:37.6]} 16. Rac1 {[%clk 0:02:25.8]} 16... a5 {[%clk
0:02:30.3]} 17. Nxe4 {[%clk 0:02:21.4]} 17... Bxe4 {[%clk 0:02:31.2]} 18. Ne5
{[%clk 0:02:16.1]} 18... Bd5 {[%clk 0:02:30.8]} 19. Qc3 {[%clk 0:02:14.5]} 19...
c6 {[%clk 0:02:30]} 20. a3 {[%clk 0:02:07.5]} 20... a4 {[%clk 0:02:24.1]} 21.
Qc5 {[%clk 0:02:04]} 21... Qxc5 {[%clk 0:02:20.1]} 22. Rxc5 {[%clk 0:01:55.5]}
22... Bb3 {[%clk 0:02:17.4]} 23. Rdc1 {[%clk 0:01:52.3]} 23... Nd5 {[%clk
0:02:15.2]} 24. Bf3 {[%clk 0:01:35.3]} 24... f6 {[%clk 0:02:10.4]} 25. Ng6
{[%clk 0:01:29.3]} 25... Kf7 {[%clk 0:02:08.5]} 26. Bxd5 {[%clk 0:01:22.3]}
26... Rxd5 {[%clk 0:02:00.5]} 27. Nf4 {[%clk 0:01:18]} 27... Rxc5 {[%clk
0:02:00.1]} 28. Rxc5 {[%clk 0:01:17.5]} 28... Ke7 {[%clk 0:01:59.6]} 29. f3
{[%clk 0:01:14.2]} 29... Kd6 {[%clk 0:01:59.5]} 30. Kf2 {[%clk 0:01:06.7]} 30...
b6 {[%clk 0:01:58.1]} 31. Rc3 {[%clk 0:01:06.1]} 31... c5 {[%clk 0:01:56]} 32.
dxc5+ {[%clk 0:01:02.2]} 32... bxc5 {[%clk 0:01:56.9]} 33. e4 {[%clk 0:00:54]}
33... g5 {[%clk 0:01:37.6]} 34. Nd3 {[%clk 0:00:52.1]} 34... c4 {[%clk 0:01:37]}
35. Nb4 {[%clk 0:00:49.5]} 35... Kc5 {[%clk 0:01:37.6]} 36. Ke2 {[%clk
0:00:45.5]} 36... Rd8 {[%clk 0:01:37.6]} 37. Nc2 {[%clk 0:00:40.5]} 37... Bxc2
{[%clk 0:01:28.3]} 38. Rxc2 {[%clk 0:00:39.8]} 38... Rd3 {[%clk 0:01:29]} 39.
Rd2 {[%clk 0:00:38.5]} 39... Rb3 {[%clk 0:01:28.8]} 40. Rc2 {[%clk 0:00:34.8]}
40... h5 {[%clk 0:01:23.6]} 41. h3 {[%clk 0:00:27.4]} 41... h4 {[%clk
0:01:22.2]} 42. Kf2 {[%clk 0:00:21]} 42... f5 {[%clk 0:01:18.4]} 43. exf5 {[%clk
0:00:20.3]} 43... exf5 {[%clk 0:01:19.3]} 44. Re2 {[%clk 0:00:20.1]} 44... Kd4
{[%clk 0:01:19.5]} 45. Rd2+ {[%clk 0:00:19.5]} 45... Ke5 {[%clk 0:01:19.6]} 46.
Re2+ {[%clk 0:00:19.4]} 46... Kd5 {[%clk 0:01:17.8]} 47. Rd2+ {[%clk 0:00:19.4]}
47... Kc5 {[%clk 0:01:18.1]} 48. Rc2 {[%clk 0:00:19]} 48... Rd3 {[%clk
0:01:16.3]} 49. Ke2 {[%clk 0:00:18]} 49... g4 {[%clk 0:01:16.8]} 50. fxg4 {[%clk
0:00:17]} 50... fxg4 {[%clk 0:01:17.7]} 51. hxg4 {[%clk 0:00:17.4]} 51... Rg3
{[%clk 0:01:18.6]} 52. Kf2 {[%clk 0:00:16.9]} 52... Rxg4 {[%clk 0:01:18.9]} 53.
Re2 {[%clk 0:00:16.8]} 53... Rg3 {[%clk 0:01:13.7]} 54. Re4 {[%clk 0:00:15.3]}
54... Rb3 {[%clk 0:01:12.8]} 55. Rxh4 {[%clk 0:00:14.5]} 55... Rxb2+ {[%clk
0:01:12.9]} 56. Kf3 {[%clk 0:00:14.4]} 56... Rb3+ {[%clk 0:01:08.5]} 57. Ke4
{[%clk 0:00:14.2]} 57... Rxa3 {[%clk 0:01:09.4]} 58. g4 {[%clk 0:00:12.3]} 58...
Rg3 {[%clk 0:01:07.8]} 59. Kf4 {[%clk 0:00:11.5]} 59... Rg1 {[%clk 0:01:06.9]}
60. Kf3 {[%clk 0:00:09.4]} 60... Kb4 {[%clk 0:01:06.6]} 61. Kf2 {[%clk 0:00:10]}
61... Rd1 {[%clk 0:01:06.5]} 62. g5 {[%clk 0:00:09.9]} 62... a3 {[%clk 0:01:07]}
63. Rh8 {[%clk 0:00:06.4]} 63... a2 {[%clk 0:01:06.5]} 64. Rb8+ {[%clk
0:00:07.3]} 64... Kc3 {[%clk 0:01:06.5]} 65. Ra8 {[%clk 0:00:06.8]} 65... a1=Q
{[%clk 0:01:06.6]} 66. Rxa1 {[%clk 0:00:06.3]} 66... Rxa1 {[%clk 0:01:07.5]} 67.
g6 {[%clk 0:00:06.7]} 67... Ra6 {[%clk 0:01:06.8]} 68. g7 {[%clk 0:00:06.1]}
68... Rg6 {[%clk 0:01:07.7]} 0-1